fUSD/lending_fUSD_20240412
["ID","MTS","AMOUNT","RATE_DAILY","PERIOD"]
[322256996,1712916645859,-500.0,0.00027397,2]
[322256998,1712916645869,-500.0,0.00027397,2]
[322257000,1712916645878,-500.0,0.00027397,2]
[322257002,1712916645887,-500.0,0.00027397,2]
[322257004,1712916645896,-500.0,0.00027397,2]
[322257006,1712916645905,-500.0,0.00027397,2]
[322257008,1712916645914,-500.0,0.00027397,2]
[322257010,1712916645923,-630.44805994,0.00027397,2]
[322257012,1712916645932,-500.0,0.00027397,2]
[322257014,1712916645941,-500.0,0.00027397,2]
[322257016,1712916645950,-500.0,0.00027397,2]
[322257018,1712916645959,-500.0,0.00027397,2]
[322257020,1712916645968,-500.0,0.00027397,2]
[322257022,1712916645979,-687.97,0.00027397,2]
[322257024,1712916645988,-942.27,0.00027397,2]
[322257025,1712916645998,-500.0,0.00027397,2]
[322257027,1712916646014,-500.0,0.00027397,2]
[322257029,1712916646024,-500.0,0.00027397,2]
[322257031,1712916646033,-1124.32,0.00027397,2]
[322257033,1712916646042,-500.0,0.00027397,2]
[322257034,1712916646051,-500.0,0.00027397,2]
[322257035,1712916646061,-500.0,0.00027397,2]
[322257036,1712916646070,-500.0,0.00027397,2]
[322257038,1712916646079,-724.59,0.00027397,2]
[322257040,1712916646088,-1077.64,0.00027397,2]
[322257042,1712916646098,-1340.25,0.00027397,2]
[322257044,1712916646106,-500.0,0.00027397,2]
[322257046,1712916646115,-500.0,0.00027397,2]
[322257048,1712916646124,-1717.34,0.00027397,2]
[322257050,1712916646133,-1068.06,0.00027397,2]
[322257052,1712916646142,-500.0,0.00027397,2]
[322257054,1712916646151,-500.0,0.00027397,2]
[322257056,1712916646160,-500.0,0.00027397,2]
[322257058,1712916646169,-821.08,0.00027397,2]
[322257060,1712916646178,-641.93,0.00027397,2]
[322257062,1712916646188,-631.2704727,0.00027397,2]
[322257064,1712916646197,-604.09,0.00027397,2]
[322257065,1712916646206,-500.0,0.00027397,2]
[322257067,1712916646216,-500.0,0.00027397,2]
[322257069,1712916646225,-556.59,0.00027397,2]
[322257071,1712916646235,-5530.8,0.00027397,2]
[322257073,1712916646244,-500.0,0.00027397,2]
[322257075,1712916646258,-500.0,0.00027397,2]
[322257077,1712916646268,-1904.72,0.00027397,2]
[322257079,1712916646277,-500.0,0.00027397,2]
[322257081,1712916646286,-500.0,0.00027397,2]
[322257084,1712916646294,-800.47,0.00027397,2]
[322257086,1712916646303,-500.0,0.00027397,2]
[322257087,1712916646312,-500.0,0.00027397,2]
[322257088,1712916646321,-2261.68,0.00027397,2]
[322257089,1712916646330,-604.39,0.00027397,2]
[322257090,1712916646340,-2052.73,0.00027397,2]
[322257091,1712916646349,-500.0,0.00027397,2]
[322257092,1712916646358,-500.0,0.00027397,2]
[322257093,1712916646368,-500.0,0.00027397,2]
[322257094,1712916646377,-500.0,0.00027397,2]
[322257095,1712916646386,-500.1716418,0.00027397,2]
[322257096,1712916646395,-1035.94,0.00027397,2]
[322257097,1712916646405,-500.0,0.00027397,2]
[322257098,1712916646414,-500.0,0.00027397,2]
[322257099,1712916646424,-1186.85,0.00027397,2]
[322257100,1712916646433,-500.0,0.00027397,2]
[322257101,1712916646442,-500.0,0.00027397,2]
[322257102,1712916646451,-930.87,0.00027397,2]
[322257103,1712916646460,-500.0,0.00027397,2]
[322257104,1712916646470,-500.0,0.00027397,2]
[322257105,1712916646479,-763.34,0.00027397,2]
[322257106,1712916646488,-1062.21,0.00027397,2]
[322257107,1712916646499,-500.0,0.00027397,2]
[322257108,1712916646509,-500.0,0.00027397,2]
[322257109,1712916646518,-500.0,0.00027397,2]
[322257110,1712916646527,-500.0,0.00027397,2]
[322257111,1712916646536,-500.0,0.00027397,2]
[322257112,1712916646545,-500.0,0.00027397,2]
[322257113,1712916646555,-500.0,0.00027397,2]
[322257114,1712916646564,-508.91643077,0.00027397,2]
[322257115,1712916646573,-925.96,0.00027397,2]
[322257116,1712916646583,-684.38,0.00027397,2]
[322257117,1712916646592,-888.39,0.00027397,2]
[322257118,1712916646602,-500.0,0.00027397,2]
[322257119,1712916646612,-510.32,0.00027397,2]
[322257120,1712916646622,-500.0,0.00027397,2]
[322257121,1712916646631,-1070.46,0.00027397,2]
[322257122,1712916646641,-500.0,0.00027397,2]
[322257123,1712916646650,-500.0,0.00027397,2]
[322257124,1712916646660,-500.0,0.00027397,2]
[322257125,1712916646671,-500.0,0.00027397,2]
[322257126,1712916646680,-500.0,0.00027397,2]
[322257127,1712916646689,-683.24,0.00027397,2]
[322257128,1712916646698,-500.0,0.00027397,2]
[322257129,1712916646707,-9883.5,0.00027397,2]
[322257130,1712916646718,-500.0,0.00027397,2]
[322257131,1712916646727,-500.0,0.00027397,2]
[322257132,1712916646737,-500.0,0.00027397,2]
[322257133,1712916646749,-500.0,0.00027397,2]
[322257134,1712916646760,-500.0,0.00027397,2]
[322257135,1712916646769,-500.0,0.00027397,2]
[322257136,1712916646780,-500.0,0.00027397,2]
[322257137,1712916646790,-500.0,0.00027397,2]
[322257138,1712916646802,-500.0,0.00027397,2]
[322257139,1712916646812,-500.0,0.00027397,2]
[322257140,1712916646821,-500.0,0.00027397,2]
[322257141,1712916646832,-500.0,0.00027397,2]
[322257142,1712916646841,-500.0,0.00027397,2]
[322257143,1712916646896,-500.0,0.00027397,2]
[322257144,1712916646907,-3764.32,0.00027397,2]
[322257145,1712916646917,-500.0,0.00027397,2]
[322257146,1712916646927,-1203.6,0.00027397,2]
[322257147,1712916646938,-1505.66,0.00027397,2]
[322257149,1712916647094,-500.0,0.00027397,2]
[322257151,1712916647104,-500.89904354,0.00027397,2]
[322257153,1712916647115,-500.0,0.00027397,2]
[322257155,1712916647126,-500.0,0.00027397,2]
[322257157,1712916647135,-500.0,0.00027397,2]
[322257159,1712916647144,-500.0,0.00027397,2]
[322257161,1712916647155,-500.0,0.00027397,2]
[322257163,1712916647165,-500.0,0.00027397,2]
[322257165,1712916647175,-500.0,0.00027397,2]
[322257167,1712916647186,-500.0,0.00027397,2]
[322257169,1712916647196,-500.0,0.00027397,2]
[322257171,1712916647206,-1331.36,0.00027397,2]
[322257173,1712916647217,-914.69,0.00027397,2]
[322257175,1712916647227,-414.16,0.00027397,2]
[322257177,1712916647237,-151.68,0.00027397,2]
[322257179,1712916647249,-228.83,0.00027397,2]
[322257181,1712916647259,-873.38,0.00027397,10]
[322257183,1712916647269,-150.0,0.000274,2]
[322257185,1712916647279,-188.18411113,0.000275,2]
[322257187,1712916647289,-10000.0,0.00027575,2]
[322257189,1712916647299,-318.0,0.00027625,2]
[322257192,1712916647310,-500.0,0.00027671,2]
[322257193,1712916647320,-500.0,0.00027671,2]
[322257195,1712916647330,-500.0,0.00027671,2]
[322257197,1712916647340,-458.98251499,0.00027671,2]
[322257199,1712916647349,-510.25310543,0.00027671,2]
[322257201,1712916647359,-500.0,0.00027671,2]
[322257203,1712916647369,-500.0,0.00027671,2]
[322257206,1712916647379,-500.0,0.00027671,2]
[322257208,1712916647390,-508.7404605,0.00027671,2]
[322257210,1712916647399,-500.0,0.00027671,2]
[322257211,1712916647410,-500.0,0.00027671,2]
[322257214,1712916647421,-216.57,0.00027671,2]
[322257216,1712916647432,-500.0,0.00027671,2]
[322257218,1712916647442,-406.27,0.00027671,2]
[322257220,1712916647453,-500.0,0.00027671,2]
[322257222,1712916647462,-196.2,0.00027671,2]
[322257224,1712916647473,-327.56329387,0.00027671,2]
[322257226,1712916647483,-500.0,0.00027671,2]
[322257228,1712916647494,-527.04980593,0.00027671,2]
[322257230,1712916647505,-636.11013834,0.00027671,2]
[322257231,1712916647516,-500.0,0.00027671,2]
[322257233,1712916647526,-190.4,0.00027671,2]
[322257235,1712916647536,-500.0,0.00027671,2]
[322257237,1712916647546,-500.0,0.00027671,2]
[322257239,1712916647557,-500.0,0.00027671,2]
[322257241,1712916647567,-500.0,0.00027671,2]
[322257243,1712916647577,-500.0,0.00027671,2]
[322257245,1712916647588,-500.0,0.00027671,2]
[322257247,1712916647599,-500.0,0.00027671,2]
[322257250,1712916647609,-500.0,0.00027671,2]
[322257251,1712916647620,-182.79681922,0.00027671,2]
[322257254,1712916647630,-500.0,0.00027671,2]
[322257255,1712916647640,-288.25938976,0.00027671,2]
[322257257,1712916647650,-500.0,0.00027671,2]
[322257260,1712916647661,-500.0,0.00027671,2]
[322257262,1712916647674,-500.0,0.00027671,2]
[322257263,1712916647685,-169.60473799,0.00027671,2]
[322257265,1712916647695,-281.90866853,0.00027671,2]
[322257266,1712916647706,-500.0,0.00027671,2]
[322257268,1712916647717,-500.0,0.00027671,2]
[322257270,1712916647728,-500.0,0.00027671,2]
[322257272,1712916647737,-500.0,0.00027671,2]
[322257274,1712916647748,-500.0,0.00027671,2]
[322257276,1712916647758,-500.0,0.00027671,2]
[322257278,1712916647768,-500.0,0.00027671,2]
[322257280,1712916647778,-271.8647142,0.00027671,2]
[322257282,1712916647787,-500.0,0.00027671,2]
[322257284,1712916647796,-500.0,0.00027671,2]
[322257286,1712916647805,-500.0,0.00027671,2]
[322257288,1712916647814,-549.51021719,0.00027671,2]
[322257290,1712916647825,-500.0,0.00027671,2]
[322257292,1712916647835,-500.0,0.00027671,2]
[322257294,1712916647844,-500.0,0.00027671,2]
[322257296,1712916647853,-500.0,0.00027671,2]
[322257298,1712916647862,-500.0,0.00027671,2]
[322257300,1712916647871,-500.0,0.00027671,2]
[322257302,1712916647880,-500.0,0.00027671,2]
[322257304,1712916647890,-205.3248476,0.00027671,2]
[322257306,1712916647900,-500.0,0.00027671,2]
[322257308,1712916647909,-150.0,0.00027671,2]
[322257310,1712916647918,-500.0,0.00027671,2]
[322257312,1712916647927,-500.0,0.00027671,2]
[322257314,1712916647936,-500.0,0.00027671,2]
[322257316,1712916647945,-500.0,0.00027671,2]
[322257318,1712916647954,-500.0,0.00027671,2]
[322257320,1712916647963,-500.0,0.00027671,2]
[322257322,1712916647972,-500.0,0.00027671,2]
[322257324,1712916647981,-500.0,0.00027671,2]
[322257326,1712916647990,-271.43651174,0.00027671,2]
[322257328,1712916648000,-556.49973588,0.00027671,2]
[322257330,1712916648009,-500.0,0.00027671,2]
[322257332,1712916648018,-616.4180905,0.00027671,2]
[322257333,1712916648027,-500.0,0.00027671,2]
[322257335,1712916648036,-500.0,0.00027671,2]
[322257337,1712916648046,-500.0,0.00027671,2]
[322257339,1712916648055,-500.0,0.00027671,2]
[322257341,1712916648064,-500.0,0.00027671,2]
[322257343,1712916648073,-281.98093537,0.00027671,2]
[322257345,1712916648082,-500.0,0.00027671,2]
[322257347,1712916648091,-500.0,0.00027671,2]
[322257349,1712916648100,-500.0,0.00027671,2]
[322257351,1712916648109,-550.70183759,0.00027671,2]
[322257353,1712916648118,-506.24424965,0.00027671,2]
[322257355,1712916648127,-500.0,0.00027671,2]
[322257357,1712916648137,-506.51055647,0.00027671,2]
[322257359,1712916648146,-500.0,0.00027671,2]
[322257361,1712916648154,-256.21744464,0.00027671,2]
[322257363,1712916648164,-500.0,0.00027671,2]
[322257365,1712916648173,-500.0,0.00027671,2]
[322257367,1712916648182,-500.0,0.00027671,2]
[322257369,1712916648191,-500.0,0.00027671,2]
[322257371,1712916648200,-500.0,0.00027671,2]
[322257373,1712916648209,-500.0,0.00027671,2]
[322257375,1712916648217,-500.0,0.00027671,2]
[322257377,1712916648226,-500.0,0.00027671,2]
[322257379,1712916648235,-500.0,0.00027671,2]
[322257381,1712916648244,-409.44019035,0.00027671,2]
[322257382,1712916648253,-500.0,0.00027671,2]
[322257383,1712916648262,-500.0,0.00027671,2]
[322257384,1712916648270,-500.0,0.00027671,2]
[322257385,1712916648279,-500.0,0.00027671,2]
[322257386,1712916648289,-370.1179457,0.00027671,2]
[322257387,1712916648299,-500.0,0.00027671,2]
[322257388,1712916648309,-157.91,0.00027671,2]
[322257389,1712916648320,-500.0,0.00027671,2]
[322257390,1712916648330,-306.56608902,0.00027671,2]
[322257391,1712916648340,-500.0,0.00027671,2]
[322257392,1712916648351,-500.0,0.00027671,2]
[322257393,1712916648360,-500.0,0.00027671,2]
[322257395,1712916648369,-500.0,0.00027671,2]
[322257397,1712916648378,-500.0,0.00027671,2]
[322257399,1712916648388,-844.56,0.00027671,2]
[322257401,1712916648396,-500.0,0.00027671,2]
[322257403,1712916648405,-500.0,0.00027671,2]
[322257405,1712916648415,-1528.81,0.00027671,2]
[322257407,1712916648424,-500.0,0.00027671,2]
[322257409,1712916648434,-500.0,0.00027671,2]
[322257411,1712916648443,-688.0,0.00027671,2]
[322257413,1712916648452,-500.0,0.00027671,2]
[322257415,1712916648461,-500.0,0.00027671,2]
[322257417,1712916648471,-513.6,0.00027671,2]
[322257419,1712916648480,-500.0,0.00027671,2]
[322257421,1712916648489,-500.0,0.00027671,2]
[322257423,1712916648498,-1391.19,0.00027671,2]
[322257425,1712916648508,-500.0,0.00027671,2]
[322257427,1712916648517,-500.0,0.00027671,2]
[322257429,1712916648527,-1076.28,0.00027671,2]
[322257431,1712916648536,-500.0,0.00027671,2]
[322257433,1712916648545,-500.0,0.00027671,2]
[322257435,1712916648554,-500.0,0.00027671,2]
[322257437,1712916648563,-478.92427023,0.00027671,2]
[322257439,1712916648573,-500.0,0.00027671,2]
[322257441,1712916648582,-500.0,0.00027671,2]
[322257443,1712916648591,-500.0,0.00027671,2]
[322257445,1712916648600,-500.0,0.00027671,2]
[322257447,1712916648609,-550.78,0.00027671,2]
[322257449,1712916648618,-500.0,0.00027671,2]
[322257451,1712916648627,-500.0,0.00027671,2]
[322257453,1712916648636,-613.24,0.00027671,2]
[322257455,1712916648646,-578.33,0.00027671,2]
[322257457,1712916648654,-500.0,0.00027671,2]
[322257459,1712916648666,-4360.31,0.00027671,2]
[322257461,1712916648678,-500.0,0.00027671,2]
[322257463,1712916648687,-500.0,0.00027671,2]
[322257465,1712916648696,-500.0,0.00027671,2]
[322257467,1712916648707,-500.0,0.00027671,2]
[322257469,1712916648716,-500.0,0.00027671,2]
[322257471,1712916648725,-589.66,0.00027671,2]
[322257473,1712916648734,-500.0,0.00027671,2]
[322257475,1712916648744,-500.0,0.00027671,2]
[322257477,1712916648754,-500.0,0.00027671,2]
[322257479,1712916648763,-500.0,0.00027671,2]
[322257481,1712916648772,-200.58968481,0.00027671,2]
[322257483,1712916648781,-500.0,0.00027671,2]
[322257485,1712916648790,-500.0,0.00027671,2]
[322257487,1712916648799,-500.0,0.00027671,2]
[322257489,1712916648808,-2207.75,0.00027671,2]
[322257491,1712916648817,-500.0,0.00027671,2]
[322257493,1712916648826,-500.0,0.00027671,2]
[322257495,1712916648836,-730.85,0.00027671,2]
[322257497,1712916648845,-500.0,0.00027671,2]
[322257499,1712916648854,-500.0,0.00027671,2]
[322257501,1712916648863,-500.0,0.00027671,2]
[322257503,1712916648872,-500.0,0.00027671,2]
[322257505,1712916648881,-834.74,0.00027671,2]
[322257507,1712916648890,-500.0,0.00027671,2]
[322257509,1712916648899,-500.0,0.00027671,2]
[322257511,1712916648909,-500.0,0.00027671,2]
[322257513,1712916648918,-500.0,0.00027671,2]
[322257515,1712916648928,-500.0,0.00027671,2]
[322257517,1712916648937,-503.47,0.00027671,2]
[322257519,1712916648946,-652.05,0.00027671,2]
[322257521,1712916648955,-1520.01,0.00027671,2]
[322257523,1712916648964,-500.0,0.00027671,2]
[322257525,1712916648973,-504.37,0.00027671,2]
[322257527,1712916648982,-500.0,0.00027671,2]
[322257529,1712916648991,-500.0,0.00027671,2]
[322257531,1712916649002,-500.0,0.00027671,2]
[322257533,1712916649011,-500.0,0.00027671,2]
[322257535,1712916649020,-500.0,0.00027671,2]
[322257537,1712916649029,-687.97,0.00027671,2]
[322257539,1712916649038,-942.27,0.00027671,2]
[322257541,1712916649048,-500.0,0.00027671,2]
[322257543,1712916649057,-500.0,0.00027671,2]
[322257545,1712916649066,-1124.32,0.00027671,2]
[322257547,1712916649075,-500.0,0.00027671,2]
[322257549,1712916649084,-500.0,0.00027671,2]
[322257551,1712916649093,-500.0,0.00027671,2]
[322257553,1712916649103,-500.0,0.00027671,2]
[322257555,1712916649112,-724.59,0.00027671,2]
[322257557,1712916649121,-1077.64,0.00027671,2]
[322257559,1712916649130,-1340.25,0.00027671,2]
[322257561,1712916649139,-500.0,0.00027671,2]
[322257563,1712916649148,-500.0,0.00027671,2]
[322257565,1712916649157,-1717.34,0.00027671,2]
[322257567,1712916649166,-1068.06,0.00027671,2]
[322257569,1712916649175,-500.0,0.00027671,2]
[322257571,1712916649184,-500.0,0.00027671,2]
[322257573,1712916649193,-821.08,0.00027671,2]
[322257575,1712916649201,-641.93,0.00027671,2]
[322257577,1712916649210,-604.09,0.00027671,2]
[322257579,1712916649219,-398.3,0.00027671,2]
[322257581,1712916649228,-5530.8,0.00027671,2]
[322257583,1712916649238,-500.0,0.00027671,2]
[322257585,1712916649247,-1904.72,0.00027671,2]
[322257587,1712916649258,-500.0,0.00027671,2]
[322257589,1712916649267,-500.0,0.00027671,2]
[322257591,1712916649276,-800.47,0.00027671,2]
[322257593,1712916649285,-500.0,0.00027671,2]
[322257595,1712916649294,-2261.68,0.00027671,2]
[322257597,1712916649303,-604.39,0.00027671,2]
[322257599,1712916649312,-2052.73,0.00027671,2]
[322257601,1712916649321,-500.0,0.00027671,2]
[322257603,1712916649330,-500.0,0.00027671,2]
[322257605,1712916649339,-1035.94,0.00027671,2]
[322257607,1712916649348,-500.0,0.00027671,2]
[322257609,1712916649357,-1186.85,0.00027671,2]
[322257611,1712916649366,-500.0,0.00027671,2]
[322257613,1712916649376,-500.0,0.00027671,2]
[322257615,1712916649384,-930.87,0.00027671,2]
[322257617,1712916649394,-500.0,0.00027671,2]
[322257619,1712916649402,-763.34,0.00027671,2]
[322257621,1712916649411,-1062.21,0.00027671,2]
[322257623,1712916649420,-500.0,0.00027671,2]
[322257625,1712916649430,-500.0,0.00027671,2]
[322257627,1712916649439,-500.0,0.00027671,2]
[322257629,1712916649449,-500.0,0.00027671,2]
[322257631,1712916649458,-500.0,0.00027671,2]
[322257633,1712916649467,-500.0,0.00027671,2]
[322257635,1712916649476,-925.96,0.00027671,2]
[322257637,1712916649484,-684.38,0.00027671,2]
[322257639,1712916649493,-888.39,0.00027671,2]
[322257641,1712916649502,-510.32,0.00027671,2]
[322257643,1712916649512,-1070.46,0.00027671,2]
[322257645,1712916649521,-500.0,0.00027671,2]
[322257647,1712916649530,-500.0,0.00027671,2]
[322257649,1712916649539,-500.0,0.00027671,2]
[322257651,1712916649549,-500.0,0.00027671,2]
[322257653,1712916649558,-500.0,0.00027671,2]
[322257655,1712916649567,-683.24,0.00027671,2]
[322257657,1712916649577,-500.0,0.00027671,2]
[322257659,1712916649586,-9883.5,0.00027671,2]
[322257661,1712916649595,-500.0,0.00027671,2]
[322257663,1712916649604,-500.0,0.00027671,2]
[322257665,1712916649613,-500.0,0.00027671,2]
[322257667,1712916649622,-500.0,0.00027671,2]
[322257669,1712916649637,-500.0,0.00027671,2]
[322257671,1712916649650,-500.0,0.00027671,2]
[322257674,1712916649660,-500.0,0.00027671,2]
[322257676,1712916649670,-500.0,0.00027671,2]
[322257677,1712916649680,-500.0,0.00027671,2]
[322257680,1712916649689,-500.0,0.00027671,2]
[322257681,1712916649698,-500.0,0.00027671,2]
[322257684,1712916649709,-500.0,0.00027671,2]
[322257686,1712916649719,-3764.32,0.00027671,2]
[322257688,1712916649728,-1203.6,0.00027671,2]
[322257690,1712916649737,-299.5386236,0.00027671,2]
[322257692,1712916649748,-1505.66,0.00027671,2]
[322257694,1712916649759,-500.0,0.00027671,2]
[322257696,1712916649768,-500.0,0.00027671,2]
[322257698,1712916649777,-500.0,0.00027671,2]
[322257700,1712916649786,-500.0,0.00027671,2]
[322257702,1712916649796,-500.0,0.00027671,2]
[322257704,1712916649806,-500.0,0.00027671,2]
[322257705,1712916649815,-500.0,0.00027671,2]
[322257708,1712916649827,-500.0,0.00027671,2]
[322257710,1712916649837,-1331.36,0.00027671,2]
[322257712,1712916649846,-914.69,0.00027671,2]
[322257714,1712916649856,-159.14360615,0.00027701,2]
[322257715,1712916649866,-159.14360615,0.00027726,2]
[322257718,1712916649875,-155.07714216,0.00027801,2]
[322257719,1712916649884,-1018.83,0.00027809,2]
[322257722,1712916649895,-800.0,0.00027836,2]
[322257724,1712916649906,-363.54579695,0.00027874,2]
[322257726,1712916649915,-150.0,0.000279,2]
[322257728,1712916649926,-442.01964678,0.000279,2]
[322257729,1712916649935,-442.01964678,0.000279,2]
[322257732,1712916649948,-442.01964678,0.000279,2]
[322257733,1712916649958,-442.01964678,0.000279,2]
[322257735,1712916649968,-442.01964678,0.000279,2]
[322257737,1712916649978,-442.01964678,0.000279,2]
[322257740,1712916649990,-157.83691746,0.00027913,2]
[322257741,1712916650000,-500.0,0.00027945,2]
[322257743,1712916650011,-500.0,0.00027945,2]
[322257745,1712916650021,-500.0,0.00027945,2]
[322257748,1712916650031,-500.0,0.00027945,2]
[322257749,1712916650040,-500.0,0.00027945,2]
[322257751,1712916650049,-500.0,0.00027945,2]
[322257753,1712916650059,-500.0,0.00027945,2]
[322257756,1712916650070,-500.0,0.00027945,2]
[322257757,1712916650081,-500.0,0.00027945,2]
[322257759,1712916650091,-500.0,0.00027945,2]
[322257761,1712916650101,-500.0,0.00027945,2]
[322257763,1712916650112,-500.0,0.00027945,2]
[322257780,1712916650249,-500.0,0.00027945,2]
[322257783,1712916650279,-500.0,0.00027945,2]
[322257785,1712916650288,-500.0,0.00027945,2]
[322257787,1712916650299,-500.0,0.00027945,2]
[322257789,1712916650309,-500.0,0.00027945,2]
[322257790,1712916650318,-500.0,0.00027945,2]
[322257793,1712916650329,-500.0,0.00027945,2]
[322257795,1712916650338,-150.0,0.00027945,2]
[322257796,1712916650349,-184.86345095,0.00027945,2]
[322257799,1712916650360,-500.0,0.00027945,2]
[322257801,1712916650370,-518.46669376,0.00027945,2]
[322257803,1712916650379,-500.0,0.00027945,2]
[322257804,1712916650390,-500.0,0.00027945,2]
[322257807,1712916650400,-500.0,0.00027945,2]
[322257808,1712916650410,-500.0,0.00027945,2]
[322257810,1712916650419,-500.0,0.00027945,2]
[322257812,1712916650429,-397.13,0.00027945,2]
[322257814,1712916650440,-500.0,0.00027945,2]
[322257816,1712916650449,-500.0,0.00027945,2]
[322257817,1712916650461,-500.0,0.00027945,2]
[322257819,1712916650472,-500.0,0.00027945,2]
[322257821,1712916650481,-500.0,0.00027945,2]
[322257824,1712916650491,-500.0,0.00027945,2]
[322257826,1712916650500,-500.0,0.00027945,2]
[322257828,1712916650511,-500.0,0.00027945,2]
[322257830,1712916650521,-175.52755882,0.00027945,2]
[322257832,1712916650531,-291.90349403,0.00027945,2]
[322257834,1712916650541,-500.0,0.00027945,2]
[322257835,1712916650551,-500.0,0.00027945,2]
[322257837,1712916650562,-500.0,0.00027945,2]
[322257840,1712916650572,-500.0,0.00027945,2]
[322257842,1712916650582,-500.0,0.00027945,2]
[322257843,1712916650591,-500.0,0.00027945,2]
[322257846,1712916650602,-500.0,0.00027945,2]
[322257848,1712916650612,-844.56,0.00027945,2]
[322257850,1712916650622,-500.0,0.00027945,2]
[322257851,1712916650632,-500.0,0.00027945,2]
[322257853,1712916650641,-1528.81,0.00027945,2]
[322257855,1712916650652,-208.18935424,0.00027945,2]
[322257857,1712916650662,-500.0,0.00027945,2]
[322257858,1712916650674,-688.0,0.00027945,2]
[322257859,1712916650685,-500.0,0.00027945,2]
[322257860,1712916650695,-500.0,0.00027945,2]
[322257861,1712916650707,-513.6,0.00027945,2]
[322257862,1712916650717,-500.0,0.00027945,2]
[322257863,1712916650727,-500.0,0.00027945,2]
[322257864,1712916650736,-1391.19,0.00027945,2]
[322257865,1712916650747,-500.0,0.00027945,2]
[322257866,1712916650758,-500.0,0.00027945,2]
[322257867,1712916650768,-1076.28,0.00027945,2]
[322257868,1712916650778,-500.0,0.00027945,2]
[322257869,1712916650788,-543.08559547,0.00027945,2]
[322257870,1712916650799,-500.0,0.00027945,2]
[322257871,1712916650809,-500.0,0.00027945,2]
[322257872,1712916650819,-401.16513337,0.00027945,2]
[322257873,1712916650829,-500.0,0.00027945,2]
[322257874,1712916650839,-500.0,0.00027945,2]
[322257875,1712916650850,-550.78,0.00027945,2]
[322257876,1712916650861,-500.0,0.00027945,2]
[322257877,1712916650870,-500.0,0.00027945,2]
[322257878,1712916650882,-578.33,0.00027945,2]
[322257879,1712916650894,-613.24,0.00027945,2]
[322257880,1712916650905,-500.0,0.00027945,2]
[322257881,1712916650915,-4360.31,0.00027945,2]
[322257882,1712916650926,-500.0,0.00027945,2]
[322257883,1712916650937,-500.0,0.00027945,2]
[322257884,1712916650948,-500.0,0.00027945,2]
[322257885,1712916650959,-500.0,0.00027945,2]
[322257886,1712916650969,-589.66,0.00027945,2]
[322257887,1712916650979,-500.0,0.00027945,2]
[322257888,1712916650990,-500.0,0.00027945,2]
[322257889,1712916651000,-500.0,0.00027945,2]
[322257890,1712916651012,-500.0,0.00027945,2]
[322257891,1712916651023,-500.0,0.00027945,2]
[322257892,1712916651033,-500.0,0.00027945,2]
[322257893,1712916651043,-2207.75,0.00027945,2]